[Event "*** Titled Tuesday Blitz"]
[Site "Chess.com"]
[Date "2021.04.06"]
[Round "9"]
[White "Grineva_Marianna"]
[Black "Kale36"]
[Result "0-1"]
[WhiteElo "2246"]
[BlackElo "2394"]
[TimeControl "180+1"]
[EndTime "11:47:13 PDT"]
[Termination "Kale36 won on time"]

1. e4 {[%clk 0:03:00.9]} 1... Nc6 {[%clk 0:02:59]} 2. Nf3 {[%clk 0:03:00.2]}
2... d6 {[%clk 0:02:59.1]} 3. h3 {[%clk 0:02:57.8]} 3... g6 {[%clk 0:02:57.4]}
4. d4 {[%clk 0:02:55.9]} 4... Bg7 {[%clk 0:02:57.4]} 5. Nc3 {[%clk 0:02:56.2]}
5... e5 {[%clk 0:02:56.8]} 6. Be3 {[%clk 0:02:51.6]} 6... Bd7 {[%clk 0:02:52.2]}
7. d5 {[%clk 0:02:50.2]} 7... Nce7 {[%clk 0:02:51.6]} 8. g4 {[%clk 0:02:48.2]}
8... Nf6 {[%clk 0:02:40.4]} 9. Qd2 {[%clk 0:02:34.1]} 9... O-O {[%clk
0:02:37.9]} 10. Bh6 {[%clk 0:02:30.2]} 10... b5 {[%clk 0:02:33.4]} 11. a3 {[%clk
0:02:18.4]} 11... a5 {[%clk 0:02:31.3]} 12. Bd3 {[%clk 0:02:14.8]} 12... b4
{[%clk 0:02:28.7]} 13. Ne2 {[%clk 0:02:14.8]} 13... Rb8 {[%clk 0:02:13.7]} 14.
axb4 {[%clk 0:02:12]} 14... axb4 {[%clk 0:02:11.8]} 15. Nh4 {[%clk 0:01:58.9]}
15... c6 {[%clk 0:01:58.9]} 16. dxc6 {[%clk 0:01:57.2]} 16... Bxc6 {[%clk
0:01:48.8]} 17. Ng3 {[%clk 0:01:56.5]} 17... d5 {[%clk 0:01:45.1]} 18. f3 {[%clk
0:01:43.9]} 18... b3 {[%clk 0:01:35.2]} 19. c3 {[%clk 0:01:27.7]} 19... dxe4
{[%clk 0:01:33.1]} 20. Bxe4 {[%clk 0:01:24.1]} 20... Nxe4 {[%clk 0:01:16.9]} 21.
Nxe4 {[%clk 0:01:16]} 21... Bxe4 {[%clk 0:01:03.9]} 22. fxe4 {[%clk 0:01:12.4]}
22... Qb6 {[%clk 0:00:49.4]} 23. Be3 {[%clk 0:01:04.6]} 23... Qb5 {[%clk
0:00:48.7]} 24. Qe2 {[%clk 0:01:00.6]} 24... Qb7 {[%clk 0:00:47.7]} 25. Bc5
{[%clk 0:00:58.5]} 25... Rfe8 {[%clk 0:00:46.7]} 26. Nf3 {[%clk 0:00:56.6]}
26... Nc6 {[%clk 0:00:41.3]} 27. O-O {[%clk 0:00:48.9]} 27... Nd8 {[%clk
0:00:41.4]} 28. Ra7 {[%clk 0:00:41.9]} 28... Qb5 {[%clk 0:00:35.2]} 29. Qf2
{[%clk 0:00:32.6]} 29... Ne6 {[%clk 0:00:34.5]} 30. Be3 {[%clk 0:00:29.4]} 30...
Nf4 {[%clk 0:00:31.9]} 31. Kh2 {[%clk 0:00:21.3]} 31... Qc4 {[%clk 0:00:29.4]}
32. Ng5 {[%clk 0:00:16.8]} 32... f6 {[%clk 0:00:20.7]} 33. Nf7 {[%clk
0:00:15.4]} 33... Qxe4 {[%clk 0:00:19.4]} 34. Nd6 {[%clk 0:00:15.3]} 34... Qc2
{[%clk 0:00:16.9]} 35. Nxe8 {[%clk 0:00:15.1]} 35... Rxe8 {[%clk 0:00:17.5]} 36.
Qxc2 {[%clk 0:00:14.3]} 36... bxc2 {[%clk 0:00:17.3]} 37. Rc1 {[%clk 0:00:14.5]}
37... Nd5 {[%clk 0:00:10.7]} 38. Bf2 {[%clk 0:00:14.3]} 38... f5 {[%clk
0:00:10.2]} 39. Rxc2 {[%clk 0:00:13.7]} 39... f4 {[%clk 0:00:10.4]} 40. Kg2
{[%clk 0:00:12.7]} 40... e4 {[%clk 0:00:10.1]} 41. Bc5 {[%clk 0:00:11.3]} 41...
f3+ {[%clk 0:00:08.7]} 42. Kf1 {[%clk 0:00:11.4]} 42... e3 {[%clk 0:00:07.8]}
43. Rd7 {[%clk 0:00:10.6]} 43... e2+ {[%clk 0:00:07.4]} 44. Ke1 {[%clk 0:00:11]}
44... Bf6 {[%clk 0:00:06]} 45. Rxd5 {[%clk 0:00:08.9]} 45... Bh4+ {[%clk
0:00:04.9]} 46. Bf2 {[%clk 0:00:09]} 46... Bxf2+ {[%clk 0:00:04.8]} 47. Kxf2
{[%clk 0:00:09.9]} 47... e1=Q+ {[%clk 0:00:05.7]} 48. Kxf3 {[%clk 0:00:09]}
48... Qe4+ {[%clk 0:00:05.9]} 49. Kf2 {[%clk 0:00:08.6]} 49... Qxd5 {[%clk
0:00:06.1]} 50. c4 {[%clk 0:00:05.8]} 50... Qd3 {[%clk 0:00:06]} 51. Rc3 {[%clk
0:00:03.6]} 51... Rf8+ {[%clk 0:00:05.7]} 52. Kg2 {[%clk 0:00:02.9]} 52... Qf1+
{[%clk 0:00:05.5]} 53. Kh2 {[%clk 0:00:02]} 53... Rf2+ {[%clk 0:00:03.3]} 54.
Kg3 {[%clk 0:00:02.9]} 54... Rg2+ {[%clk 0:00:02.4]} 55. Kh4 {[%clk 0:00:03.4]}
55... Qe1+ {[%clk 0:00:02.9]} 56. Kg5 {[%clk 0:00:03.8]} 56... Qe7+ {[%clk
0:00:02.8]} 57. Kf4 {[%clk 0:00:02.6]} 57... Rf2+ {[%clk 0:00:02.9]} 58. Kg3
{[%clk 0:00:02.7]} 58... Rf6 {[%clk 0:00:02.9]} 59. c5 {[%clk 0:00:02.6]} 59...
Qe5+ {[%clk 0:00:03]} 60. Kh4 {[%clk 0:00:02.2]} 60... g5+ {[%clk 0:00:03.5]}
61. Kh5 {[%clk 0:00:02.2]} 61... Qf4 {[%clk 0:00:02.9]} 0-1

[Event "*** Titled Tuesday Blitz"]
[Site "Chess.com"]
[Date "2021.04.06"]
[Round "9"]
[White "Loy_Konstantin"]
[Black "Caterpiller35"]
[Result "1-0"]
[WhiteElo "2359"]
[BlackElo "2436"]
[TimeControl "180+1"]
[EndTime "11:47:14 PDT"]
[Termination "Loy_Konstantin won on time"]

1. e4 {[%clk 0:03:00.6]} 1... c5 {[%clk 0:02:59.4]} 2. Nf3 {[%clk 0:03:00.1]}
2... Nc6 {[%clk 0:02:59.1]} 3. Nc3 {[%clk 0:02:59.9]} 3... g6 {[%clk 0:02:57.2]}
4. d4 {[%clk 0:02:59.3]} 4... cxd4 {[%clk 0:02:58.1]} 5. Nxd4 {[%clk 0:03:00.2]}
5... Bg7 {[%clk 0:02:58.9]} 6. Be3 {[%clk 0:03:00.6]} 6... Nf6 {[%clk
0:02:58.9]} 7. Bc4 {[%clk 0:03:01.1]} 7... O-O {[%clk 0:02:58.6]} 8. Bb3 {[%clk
0:03:01.6]} 8... Qa5 {[%clk 0:02:57.8]} 9. O-O {[%clk 0:02:59.6]} 9... d6 {[%clk
0:02:54.4]} 10. h3 {[%clk 0:02:59.8]} 10... Bd7 {[%clk 0:02:54.2]} 11. Re1
{[%clk 0:02:59.7]} 11... Rac8 {[%clk 0:02:54.4]} 12. Nf3 {[%clk 0:02:59.5]}
12... a6 {[%clk 0:02:46.3]} 13. Qd2 {[%clk 0:02:58.9]} 13... Ne5 {[%clk
0:02:44.3]} 14. Nxe5 {[%clk 0:02:52]} 14... Qxe5 {[%clk 0:02:45.2]} 15. Bd4
{[%clk 0:02:49.7]} 15... Qa5 {[%clk 0:02:40.6]} 16. Rad1 {[%clk 0:02:45.3]}
16... e5 {[%clk 0:01:53]} 17. Be3 {[%clk 0:02:30.7]} 17... Bc6 {[%clk
0:01:49.2]} 18. f3 {[%clk 0:02:10]} 18... Rfd8 {[%clk 0:01:42.3]} 19. Bg5 {[%clk
0:01:53.5]} 19... Qc5+ {[%clk 0:01:35.3]} 20. Kh2 {[%clk 0:01:44.8]} 20... b5
{[%clk 0:01:25.3]} 21. Bxf6 {[%clk 0:01:33.6]} 21... Bxf6 {[%clk 0:01:25.2]} 22.
Nd5 {[%clk 0:01:34.1]} 22... Bxd5 {[%clk 0:01:23.7]} 23. Qxd5 {[%clk 0:01:35]}
23... Qxd5 {[%clk 0:01:17.4]} 24. Rxd5 {[%clk 0:01:34.5]} 24... Rc5 {[%clk
0:01:14.2]} 25. Red1 {[%clk 0:01:31.3]} 25... Rxd5 {[%clk 0:01:13]} 26. Rxd5
{[%clk 0:01:32.2]} 26... Kf8 {[%clk 0:01:12.3]} 27. a4 {[%clk 0:01:29.5]} 27...
bxa4 {[%clk 0:01:07.2]} 28. Bxa4 {[%clk 0:01:30.4]} 28... Ke7 {[%clk 0:01:06.3]}
29. Ra5 {[%clk 0:01:28.7]} 29... Ra8 {[%clk 0:01:05.8]} 30. Bc6 {[%clk
0:01:20.1]} 30... Ra7 {[%clk 0:01:04.5]} 31. b4 {[%clk 0:01:17.4]} 31... Kd8
{[%clk 0:00:58.6]} 32. Bd5 {[%clk 0:00:59.9]} 32... Ke8 {[%clk 0:00:49.4]} 33.
b5 {[%clk 0:00:46.4]} 33... Bd8 {[%clk 0:00:47.9]} 34. Rxa6 {[%clk 0:00:42.8]}
34... Rxa6 {[%clk 0:00:47.9]} 35. bxa6 {[%clk 0:00:43.7]} 35... Bb6 {[%clk
0:00:47]} 36. Kg3 {[%clk 0:00:40]} 36... Ke7 {[%clk 0:00:42.8]} 37. Kg4 {[%clk
0:00:38.6]} 37... h5+ {[%clk 0:00:41.9]} 38. Kg3 {[%clk 0:00:35.8]} 38... Be3
{[%clk 0:00:37.7]} 39. Kh2 {[%clk 0:00:28.9]} 39... h4 {[%clk 0:00:37.1]} 40. g3
{[%clk 0:00:28.1]} 40... hxg3+ {[%clk 0:00:34.3]} 41. Kxg3 {[%clk 0:00:29]}
41... Kf6 {[%clk 0:00:32.2]} 42. Kg2 {[%clk 0:00:27.8]} 42... g5 {[%clk
0:00:30.7]} 43. Kf1 {[%clk 0:00:26.7]} 43... Ke7 {[%clk 0:00:29.6]} 44. Ke2
{[%clk 0:00:26.9]} 44... Bc5 {[%clk 0:00:28.8]} 45. Kd3 {[%clk 0:00:27.2]} 45...
f6 {[%clk 0:00:29]} 46. Kc4 {[%clk 0:00:27.3]} 46... Kd7 {[%clk 0:00:29.9]} 47.
Kb5 {[%clk 0:00:27.7]} 47... Kc7 {[%clk 0:00:30.2]} 48. Be6 {[%clk 0:00:26.7]}
48... Bd4 {[%clk 0:00:27]} 49. Bc4 {[%clk 0:00:24.8]} 49... Bc5 {[%clk
0:00:26.9]} 50. Bd5 {[%clk 0:00:25]} 50... Bd4 {[%clk 0:00:27.1]} 51. Bb7 {[%clk
0:00:25.1]} 51... Bc5 {[%clk 0:00:26.6]} 52. Kc4 {[%clk 0:00:25.5]} 52... Kd7
{[%clk 0:00:23.9]} 53. Kd5 {[%clk 0:00:25.8]} 53... Bd4 {[%clk 0:00:18.2]} 54.
Bc6+ {[%clk 0:00:25.5]} 54... Ke7 {[%clk 0:00:15.3]} 55. Ba4 {[%clk 0:00:25.2]}
55... Bc5 {[%clk 0:00:04.7]} 56. Kc6 {[%clk 0:00:25.1]} 56... f5 {[%clk
0:00:02.8]} 57. Kb7 {[%clk 0:00:20.5]} 57... d5 {[%clk 0:00:02.7]} 58. exd5
{[%clk 0:00:17.8]} 58... e4 {[%clk 0:00:02.5]} 59. fxe4 {[%clk 0:00:17]} 59...
fxe4 {[%clk 0:00:02.3]} 60. a7 {[%clk 0:00:13.3]} 60... Bxa7 {[%clk 0:00:02.4]}
61. Kxa7 {[%clk 0:00:14.2]} 61... Kd6 {[%clk 0:00:01.7]} 62. Kb6 {[%clk
0:00:13.8]} 62... Kxd5 {[%clk 0:00:01.8]} 63. Bb5 {[%clk 0:00:14]} 63... Kd4
{[%clk 0:00:02]} 64. Kc6 {[%clk 0:00:13.3]} 64... Kc3 {[%clk 0:00:02.3]} 65. Kd5
{[%clk 0:00:12.8]} 1-0

[Event "*** Titled Tuesday Blitz"]
[Site "Chess.com"]
[Date "2021.04.06"]
[Round "9"]
[White "FairChess_on_YouTube"]
[Black "RD4ever"]
[Result "0-1"]
[WhiteElo "2994"]
[BlackElo "2896"]
[TimeControl "180+1"]
[EndTime "11:47:18 PDT"]
[Termination "RD4ever won by resignation"]

1. e4 {[%clk 0:03:00.9]} 1... e6 {[%clk 0:02:54]} 2. d4 {[%clk 0:03:00.2]} 2...
d5 {[%clk 0:02:54.3]} 3. e5 {[%clk 0:02:58.2]} 3... c5 {[%clk 0:02:54.3]} 4. c3
{[%clk 0:02:58.3]} 4... Nc6 {[%clk 0:02:54.6]} 5. Nf3 {[%clk 0:02:57.9]} 5...
Bd7 {[%clk 0:02:51.3]} 6. Bd3 {[%clk 0:02:57.3]} 6... Rc8 {[%clk 0:02:40]} 7. a3
{[%clk 0:02:42.4]} 7... cxd4 {[%clk 0:02:39.2]} 8. cxd4 {[%clk 0:02:40.8]} 8...
Qb6 {[%clk 0:02:39.5]} 9. O-O {[%clk 0:02:40.3]} 9... Nxd4 {[%clk 0:02:38.1]}
10. Nc3 {[%clk 0:02:40.9]} 10... Nxf3+ {[%clk 0:02:18.6]} 11. Qxf3 {[%clk
0:02:40.5]} 11... Ne7 {[%clk 0:02:19.5]} 12. Qg3 {[%clk 0:02:19.9]} 12... Ng6
{[%clk 0:02:09.9]} 13. Re1 {[%clk 0:02:13.6]} 13... Be7 {[%clk 0:02:07.8]} 14.
Ne2 {[%clk 0:02:00.3]} 14... Bh4 {[%clk 0:02:05.1]} 15. Qe3 {[%clk 0:01:46.6]}
15... Qxe3 {[%clk 0:02:03]} 16. Bxe3 {[%clk 0:01:47.5]} 16... Nxe5 {[%clk
0:02:03.3]} 17. Nf4 {[%clk 0:01:44.8]} 17... Nxd3 {[%clk 0:01:56.9]} 18. Nxd3
{[%clk 0:01:45.7]} 18... b6 {[%clk 0:01:57.6]} 19. a4 {[%clk 0:01:41.8]} 19...
Bf6 {[%clk 0:01:47.5]} 20. f4 {[%clk 0:01:25.9]} 20... Ke7 {[%clk 0:01:24.7]}
21. a5 {[%clk 0:01:19]} 21... Bb5 {[%clk 0:01:07.3]} 22. Ne5 {[%clk 0:01:18.7]}
22... bxa5 {[%clk 0:01:07.1]} 23. Bxa7 {[%clk 0:01:08.6]} 23... a4 {[%clk
0:01:07.1]} 24. Bd4 {[%clk 0:01:07.2]} 24... Rc2 {[%clk 0:01:02.6]} 25. b3
{[%clk 0:01:04.3]} 25... Ra8 {[%clk 0:00:59.9]} 26. bxa4 {[%clk 0:01:01.4]}
26... Rxa4 {[%clk 0:01:00.8]} 27. Rxa4 {[%clk 0:00:59.2]} 27... Bxa4 {[%clk
0:01:01.7]} 28. Ra1 {[%clk 0:00:59.2]} 28... Rc4 {[%clk 0:00:56.4]} 29. Be3
{[%clk 0:00:36.6]} 29... Re4 {[%clk 0:00:54.8]} 30. Bc5+ {[%clk 0:00:33.7]}
30... Ke8 {[%clk 0:00:52.2]} 31. g3 {[%clk 0:00:28.4]} 31... g5 {[%clk
0:00:48.6]} 32. Rb1 {[%clk 0:00:23.2]} 32... Bxe5 {[%clk 0:00:47.2]} 33. fxe5
{[%clk 0:00:22.3]} 33... Rxe5 {[%clk 0:00:47.6]} 34. Rb7 {[%clk 0:00:19.9]}
34... Rf5 {[%clk 0:00:45.4]} 35. g4 {[%clk 0:00:15]} 35... Rf4 {[%clk
0:00:44.7]} 36. h3 {[%clk 0:00:15.5]} 36... Bc2 {[%clk 0:00:31.1]} 37. Bd6
{[%clk 0:00:15.1]} 37... Rf3 {[%clk 0:00:31]} 38. Be7 {[%clk 0:00:07.8]} 38...
h6 {[%clk 0:00:30.5]} 39. Bd6 {[%clk 0:00:04.7]} 39... Be4 {[%clk 0:00:30.3]}
40. Kh2 {[%clk 0:00:04.3]} 40... Rf2+ {[%clk 0:00:24]} 41. Kg1 {[%clk 0:00:04]}
41... Rc2 {[%clk 0:00:21.8]} 42. Re7+ {[%clk 0:00:03.2]} 42... Kd8 {[%clk
0:00:21]} 43. Rxf7 {[%clk 0:00:03.6]} 43... d4 {[%clk 0:00:21.6]} 44. Rf2 {[%clk
0:00:01.7]} 44... Rc1+ {[%clk 0:00:19.5]} 45. Rf1 {[%clk 0:00:02.2]} 45... Rc2
{[%clk 0:00:17.4]} 46. Rf2 {[%clk 0:00:02.3]} 46... d3 {[%clk 0:00:17.7]} 47.
Rxc2 {[%clk 0:00:01.7]} 47... dxc2 {[%clk 0:00:18.6]} 48. Ba3 {[%clk 0:00:02.1]}
48... Kd7 {[%clk 0:00:18.9]} 49. Kf2 {[%clk 0:00:02.7]} 49... Kc6 {[%clk
0:00:18.7]} 50. Ke3 {[%clk 0:00:03]} 50... Bg2 {[%clk 0:00:18.7]} 51. Kd2 {[%clk
0:00:03.6]} 51... Bxh3 {[%clk 0:00:18.7]} 52. Bf8 {[%clk 0:00:04.2]} 52... h5
{[%clk 0:00:14]} 53. gxh5 {[%clk 0:00:05.1]} 53... Bf5 {[%clk 0:00:13.7]} 54. h6
{[%clk 0:00:04.4]} 54... g4 {[%clk 0:00:13.7]} 55. Ba3 {[%clk 0:00:04.8]} 55...
Kd5 {[%clk 0:00:14]} 56. Ke3 {[%clk 0:00:05.3]} 56... e5 {[%clk 0:00:10.5]} 57.
Bb2 {[%clk 0:00:05.3]} 57... Ke6 {[%clk 0:00:10.8]} 58. Kf2 {[%clk 0:00:05]}
58... e4 {[%clk 0:00:06.2]} 59. Kg3 {[%clk 0:00:05]} 59... e3 {[%clk 0:00:06.4]}
60. Bc1 {[%clk 0:00:04.9]} 60... e2 {[%clk 0:00:06.5]} 61. Kf2 {[%clk
0:00:05.5]} 61... Bd3 {[%clk 0:00:06.9]} 62. h7 {[%clk 0:00:05.8]} 62... Bxh7
{[%clk 0:00:06.6]} 63. Kxe2 {[%clk 0:00:06.4]} 63... Kd5 {[%clk 0:00:07.3]} 64.
Ke3 {[%clk 0:00:06.3]} 64... Kc4 {[%clk 0:00:07.8]} 65. Kf4 {[%clk 0:00:06.7]}
65... Bf5 {[%clk 0:00:05.8]} 66. Kxf5 {[%clk 0:00:05.3]} 66... g3 {[%clk
0:00:06]} 67. Kf4 {[%clk 0:00:05.8]} 67... g2 {[%clk 0:00:06.6]} 0-1

[Event "*** Titled Tuesday Blitz"]
[Site "Chess.com"]
[Date "2021.04.06"]
[Round "9"]
[White "Boorchess"]
[Black "ChampStan"]
[Result "1-0"]
[WhiteElo "2528"]
[BlackElo "2048"]
[TimeControl "180+1"]
[EndTime "11:47:19 PDT"]
[Termination "Boorchess won on time"]

1. e4 {[%clk 0:02:26.8]} 1... e5 {[%clk 0:02:58.4]} 2. Bc4 {[%clk 0:02:25.8]}
2... Nf6 {[%clk 0:02:56.5]} 3. d3 {[%clk 0:02:26]} 3... c6 {[%clk 0:02:51.9]} 4.
Bb3 {[%clk 0:02:24.7]} 4... d5 {[%clk 0:02:41.2]} 5. Nd2 {[%clk 0:02:23.3]} 5...
Bc5 {[%clk 0:02:35.4]} 6. Ngf3 {[%clk 0:02:22.5]} 6... O-O {[%clk 0:02:34.4]} 7.
O-O {[%clk 0:02:20.4]} 7... Nbd7 {[%clk 0:02:32]} 8. Qe2 {[%clk 0:02:16.2]} 8...
Re8 {[%clk 0:02:30.6]} 9. Rd1 {[%clk 0:02:14.8]} 9... Nh5 {[%clk 0:02:27.6]} 10.
Nf1 {[%clk 0:02:14]} 10... Nf4 {[%clk 0:02:25.2]} 11. Bxf4 {[%clk 0:02:04.2]}
11... exf4 {[%clk 0:02:26.1]} 12. Qd2 {[%clk 0:02:01.2]} 12... dxe4 {[%clk
0:02:12]} 13. dxe4 {[%clk 0:02:01]} 13... Rxe4 {[%clk 0:02:06.8]} 14. Re1 {[%clk
0:01:52.6]} 14... Rxe1 {[%clk 0:01:36.6]} 15. Rxe1 {[%clk 0:01:51.7]} 15... Qf6
{[%clk 0:01:00.3]} 16. Re8+ {[%clk 0:01:50.2]} 16... Bf8 {[%clk 0:00:57.2]} 17.
Rxc8 {[%clk 0:01:34.5]} 17... Rxc8 {[%clk 0:00:53]} 18. Qxd7 {[%clk 0:01:34.9]}
18... Rd8 {[%clk 0:00:46.6]} 19. Qxb7 {[%clk 0:01:33.7]} 19... g5 {[%clk
0:00:41.4]} 20. h3 {[%clk 0:01:33.2]} 20... h5 {[%clk 0:00:41.1]} 21. N3d2
{[%clk 0:01:17.5]} 21... g4 {[%clk 0:00:31.4]} 22. hxg4 {[%clk 0:01:17]} 22...
hxg4 {[%clk 0:00:32.3]} 23. Ne4 {[%clk 0:00:55.6]} 23... Qg6 {[%clk 0:00:27.5]}
24. Nfd2 {[%clk 0:00:53.7]} 24... Re8 {[%clk 0:00:14.1]} 25. Qxa7 {[%clk
0:00:27]} 25... Re7 {[%clk 0:00:09.7]} 26. Qd4 {[%clk 0:00:24.6]} 26... Qg7
{[%clk 0:00:05.1]} 27. Nf6+ {[%clk 0:00:20]} 27... Kh8 {[%clk 0:00:05.2]} 28.
Qxf4 {[%clk 0:00:20.4]} 28... Re1+ {[%clk 0:00:04]} 29. Nf1 {[%clk 0:00:20.9]}
29... Qg6 {[%clk 0:00:03.9]} 30. Nxg4 {[%clk 0:00:17.3]} 30... Bd6 {[%clk
0:00:03.1]} 31. Qf6+ {[%clk 0:00:14]} 31... Qxf6 {[%clk 0:00:02.7]} 32. Nxf6
{[%clk 0:00:14.1]} 32... Ra1 {[%clk 0:00:01.9]} 33. Ng4 {[%clk 0:00:13]} 33...
Rb1 {[%clk 0:00:02]} 34. Bxf7 {[%clk 0:00:12.1]} 34... Rxb2 {[%clk 0:00:02.2]}
35. Bb3 {[%clk 0:00:12.6]} 35... Rb1 {[%clk 0:00:02.6]} 36. Ne3 {[%clk
0:00:12.9]} 36... Kg7 {[%clk 0:00:02.7]} 37. g3 {[%clk 0:00:13.3]} 37... Bc5
{[%clk 0:00:03.6]} 38. Kg2 {[%clk 0:00:13.4]} 38... Kf6 {[%clk 0:00:04.5]} 39.
Nc4 {[%clk 0:00:12.9]} 39... Bd4 {[%clk 0:00:04.2]} 40. Nfe3 {[%clk 0:00:13]}
40... Ra1 {[%clk 0:00:03.7]} 41. a4 {[%clk 0:00:13.1]} 41... c5 {[%clk
0:00:03.9]} 42. Kf3 {[%clk 0:00:13.3]} 42... Rh1 {[%clk 0:00:02.5]} 43. Kg2
{[%clk 0:00:13.4]} 43... Rh8 {[%clk 0:00:03.4]} 44. Kf3 {[%clk 0:00:13.8]} 44...
Rf8 {[%clk 0:00:03.7]} 45. Ke2 {[%clk 0:00:14.2]} 45... Ke7 {[%clk 0:00:03.7]}
46. f3 {[%clk 0:00:14]} 46... Kd7 {[%clk 0:00:03.5]} 47. g4 {[%clk 0:00:14.3]}
47... Rh8 {[%clk 0:00:03]} 48. f4 {[%clk 0:00:14.2]} 48... Rh2+ {[%clk
0:00:03.5]} 49. Kf3 {[%clk 0:00:14.5]} 49... Rh3+ {[%clk 0:00:03.1]} 50. Ke4
{[%clk 0:00:14.8]} 50... Rh2 {[%clk 0:00:03.4]} 51. g5 {[%clk 0:00:15.1]} 51...
Ke7 {[%clk 0:00:03.9]} 52. f5 {[%clk 0:00:15.1]} 52... Rh4+ {[%clk 0:00:03]} 53.
Kd5 {[%clk 0:00:15.3]} 53... Rh5 {[%clk 0:00:03.9]} 54. g6 {[%clk 0:00:14]}
54... Kf6 {[%clk 0:00:03.7]} 55. a5 {[%clk 0:00:14.4]} 55... Rh8 {[%clk
0:00:03.6]} 56. a6 {[%clk 0:00:14.7]} 56... Ra8 {[%clk 0:00:04]} 57. Ke4 {[%clk
0:00:11]} 57... Rxa6 {[%clk 0:00:04.1]} 58. Ng4+ {[%clk 0:00:11.2]} 58... Kg5
{[%clk 0:00:03.6]} 59. Nce5 {[%clk 0:00:09.7]} 59... Ra8 {[%clk 0:00:03.2]} 60.
g7 {[%clk 0:00:09.2]} 60... c4 {[%clk 0:00:01.8]} 61. f6 {[%clk 0:00:08.2]}
61... cxb3 {[%clk 0:00:01.7]} 62. cxb3 {[%clk 0:00:08.7]} 62... Bxe5 {[%clk
0:00:02]} 63. Kxe5 {[%clk 0:00:08.5]} 63... Kxg4 {[%clk 0:00:02.3]} 64. f7
{[%clk 0:00:08.7]} 64... Ra5+ {[%clk 0:00:01.4]} 65. Kd4 {[%clk 0:00:08.8]} 1-0

[Event "*** Titled Tuesday Blitz"]
[Site "Chess.com"]
[Date "2021.04.06"]
[Round "9"]
[White "Irishchessman16"]
[Black "WPWPWP-2015"]
[Result "0-1"]
[WhiteElo "2282"]
[BlackElo "2432"]
[TimeControl "180+1"]
[EndTime "11:47:20 PDT"]
[Termination "WPWPWP-2015 won by resignation"]

1. e4 {[%clk 0:03:00.9]} 1... c5 {[%clk 0:02:58.9]} 2. Nf3 {[%clk 0:03:00.5]}
2... d6 {[%clk 0:02:55.4]} 3. d4 {[%clk 0:02:55.2]} 3... cxd4 {[%clk 0:02:52.5]}
4. Nxd4 {[%clk 0:02:56.1]} 4... Nf6 {[%clk 0:02:52.7]} 5. Nc3 {[%clk 0:02:55.7]}
5... a6 {[%clk 0:02:53.6]} 6. h3 {[%clk 0:02:52.4]} 6... e5 {[%clk 0:02:52.4]}
7. Nde2 {[%clk 0:02:50.5]} 7... b5 {[%clk 0:02:49]} 8. a3 {[%clk 0:02:47.9]}
8... Bb7 {[%clk 0:02:47.6]} 9. Qd3 {[%clk 0:02:45.5]} 9... Nbd7 {[%clk
0:02:46.8]} 10. Be3 {[%clk 0:02:45.2]} 10... Nc5 {[%clk 0:02:45.3]} 11. Bxc5
{[%clk 0:02:44.3]} 11... dxc5 {[%clk 0:02:44.8]} 12. O-O-O {[%clk 0:02:43]}
12... Qxd3 {[%clk 0:02:42.3]} 13. cxd3 {[%clk 0:02:42.7]} 13... Bd6 {[%clk
0:02:34.6]} 14. Ng3 {[%clk 0:02:40.5]} 14... g6 {[%clk 0:02:34]} 15. Be2 {[%clk
0:02:29.2]} 15... h5 {[%clk 0:02:32.6]} 16. Nf1 {[%clk 0:02:28.8]} 16... O-O-O
{[%clk 0:02:22]} 17. Ne3 {[%clk 0:02:28.6]} 17... Bf8 {[%clk 0:02:21.2]} 18. Kc2
{[%clk 0:02:24.6]} 18... Bh6 {[%clk 0:02:20.5]} 19. Nf1 {[%clk 0:02:13.1]} 19...
Rd4 {[%clk 0:02:13.9]} 20. Nd2 {[%clk 0:02:10.6]} 20... Nd7 {[%clk 0:02:06.9]}
21. Nb3 {[%clk 0:02:00.6]} 21... Rd6 {[%clk 0:02:05.3]} 22. Na5 {[%clk
0:02:00.1]} 22... Ba8 {[%clk 0:02:04.7]} 23. b4 {[%clk 0:01:59.4]} 23... Kd8
{[%clk 0:01:58.1]} 24. Nb3 {[%clk 0:01:55.3]} 24... cxb4 {[%clk 0:01:44.8]} 25.
axb4 {[%clk 0:01:54.1]} 25... Ke7 {[%clk 0:01:43]} 26. Ra1 {[%clk 0:01:26.5]}
26... Rc8 {[%clk 0:01:40.7]} 27. Kb2 {[%clk 0:01:18.9]} 27... Ke8 {[%clk
0:01:37.4]} 28. Nd5 {[%clk 0:00:27.2]} 28... Rdc6 {[%clk 0:01:15.6]} 29. Bd1
{[%clk 0:00:25.9]} 29... Bf8 {[%clk 0:01:08]} 30. Na5 {[%clk 0:00:21.9]} 30...
Re6 {[%clk 0:01:03.8]} 31. Bb3 {[%clk 0:00:20.9]} 31... Nb6 {[%clk 0:00:54.2]}
32. Rac1 {[%clk 0:00:18]} 32... Bxd5 {[%clk 0:00:38.1]} 33. Rxc8+ {[%clk
0:00:16.6]} 33... Nxc8 {[%clk 0:00:37.3]} 34. Bxd5 {[%clk 0:00:16.9]} 34... Rf6
{[%clk 0:00:35.7]} 35. f3 {[%clk 0:00:16.5]} 35... Bxb4 {[%clk 0:00:34]} 36. Nc6
{[%clk 0:00:16.7]} 36... Bd2 {[%clk 0:00:28]} 37. Ra1 {[%clk 0:00:14.3]} 37...
a5 {[%clk 0:00:24.4]} 38. Nxa5 {[%clk 0:00:13.8]} 38... Ra6 {[%clk 0:00:23.7]}
39. Nb3 {[%clk 0:00:13.6]} 39... Rxa1 {[%clk 0:00:21.9]} 40. Nxa1 {[%clk
0:00:13.6]} 40... Be3 {[%clk 0:00:21.2]} 41. Kb3 {[%clk 0:00:13.8]} 41... Ke7
{[%clk 0:00:19.6]} 42. Nc2 {[%clk 0:00:14]} 42... Bc5 {[%clk 0:00:18.7]} 43. d4
{[%clk 0:00:13.3]} 43... exd4 {[%clk 0:00:18.2]} 44. Ne1 {[%clk 0:00:13.2]}
44... Kf6 {[%clk 0:00:17.1]} 45. Nd3 {[%clk 0:00:13.1]} 45... Bd6 {[%clk
0:00:17.3]} 46. Bc6 {[%clk 0:00:13.4]} 46... Na7 {[%clk 0:00:16]} 47. Bd7 {[%clk
0:00:13.7]} 47... g5 {[%clk 0:00:15.5]} 48. Be8 {[%clk 0:00:11.3]} 48... h4
{[%clk 0:00:15.4]} 49. e5+ {[%clk 0:00:09.6]} 49... Bxe5 {[%clk 0:00:15.3]} 50.
Bxf7 {[%clk 0:00:10]} 50... Bd6 {[%clk 0:00:13.6]} 51. Bd5 {[%clk 0:00:10.2]}
51... Kf5 {[%clk 0:00:13]} 52. Be4+ {[%clk 0:00:10.6]} 52... Kf6 {[%clk
0:00:12.7]} 53. Nf2 {[%clk 0:00:10.6]} 53... Bg3 {[%clk 0:00:11.6]} 54. Ng4+
{[%clk 0:00:10.5]} 54... Ke6 {[%clk 0:00:11.6]} 55. Kc2 {[%clk 0:00:10.8]} 55...
Kd6 {[%clk 0:00:11]} 56. Kd3 {[%clk 0:00:10.9]} 56... Kc5 {[%clk 0:00:10.5]} 57.
Nf6 {[%clk 0:00:11]} 57... Bf2 {[%clk 0:00:08]} 58. Nd7+ {[%clk 0:00:10.9]}
58... Kd6 {[%clk 0:00:08]} 59. Nf8 {[%clk 0:00:10.6]} 59... Nc8 {[%clk
0:00:07.7]} 60. Nh7 {[%clk 0:00:10.5]} 60... Be3 {[%clk 0:00:07.3]} 61. Nf6
{[%clk 0:00:10.6]} 61... Kc5 {[%clk 0:00:05.9]} 62. Nd5 {[%clk 0:00:10.1]} 62...
Nd6 {[%clk 0:00:05.2]} 63. Nxe3 {[%clk 0:00:09.6]} 63... dxe3 {[%clk 0:00:04.8]}
64. Bh7 {[%clk 0:00:09.1]} 64... b4 {[%clk 0:00:04]} 65. Bg8 {[%clk 0:00:09]}
65... Nf5 {[%clk 0:00:03.3]} 66. Be6 {[%clk 0:00:09.1]} 66... Nd4 {[%clk
0:00:03.3]} 67. Kxe3 {[%clk 0:00:09.5]} 67... Nxe6 {[%clk 0:00:03.2]} 68. Ke4
{[%clk 0:00:10]} 68... Nf4 {[%clk 0:00:03.8]} 69. Ke5 {[%clk 0:00:10.9]} 69...
b3 {[%clk 0:00:03.9]} 70. Kf5 {[%clk 0:00:11.5]} 70... b2 {[%clk 0:00:04.8]} 71.
Kxg5 {[%clk 0:00:12.2]} 71... Nxg2 {[%clk 0:00:05.3]} 72. Kg4 {[%clk 0:00:12.7]}
72... b1=Q {[%clk 0:00:05.6]} 73. f4 {[%clk 0:00:13.3]} 73... Qd1+ {[%clk
0:00:06.2]} 0-1